[Event "*** Titled Tuesday Blitz"]
[Site "Chess.com"]
[Date "2020.12.29"]
[Round "9"]
[White "Alekseyviktorovich"]
[Black "chessdjw"]
[Result "0-1"]
[WhiteElo "2315"]
[BlackElo "2592"]
[TimeControl "180+1"]
[EndTime "11:44:34 PST"]
[Termination "chessdjw won by resignation"]

1. e4 {[%clk 0:02:32.8]} 1... e5 {[%clk 0:02:58.7]} 2. Nf3 {[%clk 0:02:31.8]}
2... Nc6 {[%clk 0:02:59.1]} 3. Bb5 {[%clk 0:02:31.1]} 3... g6 {[%clk 0:02:56.2]}
4. Nc3 {[%clk 0:02:27]} 4... Bg7 {[%clk 0:02:55.7]} 5. O-O {[%clk 0:02:26.4]}
5... Nge7 {[%clk 0:02:55.7]} 6. d3 {[%clk 0:02:18.7]} 6... O-O {[%clk
0:02:55.3]} 7. a3 {[%clk 0:02:14.3]} 7... Nd4 {[%clk 0:02:49.4]} 8. Nxd4 {[%clk
0:02:11]} 8... exd4 {[%clk 0:02:48.3]} 9. Ne2 {[%clk 0:02:11.2]} 9... c6 {[%clk
0:02:43.2]} 10. Ba4 {[%clk 0:02:10.9]} 10... d5 {[%clk 0:02:43.4]} 11. exd5
{[%clk 0:02:08.2]} 11... Nxd5 {[%clk 0:02:41.5]} 12. Nf4 {[%clk 0:02:05.2]}
12... Re8 {[%clk 0:02:28]} 13. Nxd5 {[%clk 0:02:01.5]} 13... Qxd5 {[%clk
0:02:28.9]} 14. Bb3 {[%clk 0:02:00]} 14... Qf5 {[%clk 0:02:21.6]} 15. Re1 {[%clk
0:01:53.1]} 15... Bd7 {[%clk 0:02:20.2]} 16. Bd2 {[%clk 0:01:46.1]} 16... h5
{[%clk 0:02:09.7]} 17. h3 {[%clk 0:01:45]} 17... h4 {[%clk 0:02:06.8]} 18. Rxe8+
{[%clk 0:01:42.7]} 18... Rxe8 {[%clk 0:02:05.4]} 19. Qf1 {[%clk 0:01:42.7]}
19... b6 {[%clk 0:01:32.7]} 20. Re1 {[%clk 0:01:41]} 20... Re5 {[%clk
0:01:32.6]} 21. Rxe5 {[%clk 0:01:31.6]} 21... Qxe5 {[%clk 0:01:32.4]} 22. Qe1
{[%clk 0:01:30.7]} 22... Qxe1+ {[%clk 0:01:32.2]} 23. Bxe1 {[%clk 0:01:30.1]}
23... Bh6 {[%clk 0:01:32.6]} 24. f3 {[%clk 0:01:14.3]} 24... Be3+ {[%clk
0:01:22]} 25. Bf2 {[%clk 0:01:07.7]} 25... Bxf2+ {[%clk 0:01:11.9]} 26. Kxf2
{[%clk 0:01:07.4]} 26... Kg7 {[%clk 0:01:12.8]} 27. f4 {[%clk 0:01:07.4]} 27...
f6 {[%clk 0:01:01.1]} 28. Kf3 {[%clk 0:01:07]} 28... Bf5 {[%clk 0:01:01.6]} 29.
Bc4 {[%clk 0:01:04.4]} 29... Kf8 {[%clk 0:01:01.7]} 30. c3 {[%clk 0:00:59.7]}
30... c5 {[%clk 0:00:55.8]} 31. cxd4 {[%clk 0:00:54]} 31... cxd4 {[%clk
0:00:56.7]} 32. b4 {[%clk 0:00:54.3]} 32... Ke7 {[%clk 0:00:56.2]} 33. g4 {[%clk
0:00:50.1]} 33... hxg3 {[%clk 0:00:55.1]} 34. Kxg3 {[%clk 0:00:50.2]} 34... Kd6
{[%clk 0:00:54.6]} 35. h4 {[%clk 0:00:50.4]} 35... Kc6 {[%clk 0:00:53.4]} 36.
Kf3 {[%clk 0:00:49.7]} 36... b5 {[%clk 0:00:52.3]} 37. Bf7 {[%clk 0:00:28.4]}
37... Bxd3 {[%clk 0:00:52.2]} 38. Be8+ {[%clk 0:00:20.2]} 38... Kd6 {[%clk
0:00:51.9]} 39. f5 {[%clk 0:00:19.1]} 39... Bxf5 {[%clk 0:00:51.3]} 40. Bxb5
{[%clk 0:00:18.7]} 40... Ke5 {[%clk 0:00:48.7]} 41. Bc4 {[%clk 0:00:17.4]} 41...
Be4+ {[%clk 0:00:48.4]} 42. Kg4 {[%clk 0:00:17.1]} 42... d3 {[%clk 0:00:47.4]}
43. Bb3 {[%clk 0:00:16.1]} 43... f5+ {[%clk 0:00:44.2]} 44. Kg5 {[%clk
0:00:15.8]} 44... f4 {[%clk 0:00:44.2]} 45. Kg4 {[%clk 0:00:15.9]} 45... f3
{[%clk 0:00:44.1]} 46. Kg3 {[%clk 0:00:16]} 46... Kd4 {[%clk 0:00:44.3]} 47. Kf2
{[%clk 0:00:16.1]} 47... Kc3 {[%clk 0:00:44.7]} 48. Ba4 {[%clk 0:00:13]} 48...
d2 {[%clk 0:00:43.4]} 0-1

[Event "*** Titled Tuesday Blitz"]
[Site "Chess.com"]
[Date "2020.12.29"]
[Round "9"]
[White "ZatonskihAnna"]
[Black "lavr92"]
[Result "1-0"]
[WhiteElo "2519"]
[BlackElo "2596"]
[TimeControl "180+1"]
[EndTime "11:44:35 PST"]
[Termination "ZatonskihAnna won by resignation"]

1. e4 {[%clk 0:03:00.9]} 1... e5 {[%clk 0:02:59.8]} 2. Nf3 {[%clk 0:03:00.5]}
2... Nc6 {[%clk 0:03:00.2]} 3. Nc3 {[%clk 0:02:59.3]} 3... Nf6 {[%clk
0:02:59.7]} 4. d4 {[%clk 0:02:59.5]} 4... exd4 {[%clk 0:02:59.1]} 5. Nxd4 {[%clk
0:03:00.4]} 5... Bb4 {[%clk 0:02:58.1]} 6. Nxc6 {[%clk 0:03:00]} 6... bxc6
{[%clk 0:02:59]} 7. Bd3 {[%clk 0:03:00.6]} 7... O-O {[%clk 0:02:55.9]} 8. O-O
{[%clk 0:02:59.5]} 8... Re8 {[%clk 0:02:50.2]} 9. Bg5 {[%clk 0:02:55.7]} 9... h6
{[%clk 0:02:47.2]} 10. Bh4 {[%clk 0:02:55.6]} 10... d6 {[%clk 0:02:39.7]} 11. f3
{[%clk 0:02:21.4]} 11... Rb8 {[%clk 0:02:37.9]} 12. Kh1 {[%clk 0:02:20.5]} 12...
d5 {[%clk 0:02:15.4]} 13. exd5 {[%clk 0:01:51]} 13... Bxc3 {[%clk 0:02:15.2]}
14. bxc3 {[%clk 0:01:51.8]} 14... cxd5 {[%clk 0:02:15.2]} 15. Qd2 {[%clk
0:01:08.7]} 15... c5 {[%clk 0:01:37.2]} 16. Rad1 {[%clk 0:00:40.8]} 16... Be6
{[%clk 0:01:30.6]} 17. Qf2 {[%clk 0:00:39]} 17... Rc8 {[%clk 0:00:29.4]} 18. Ba6
{[%clk 0:00:28.6]} 18... Rc7 {[%clk 0:00:20.5]} 19. Bg3 {[%clk 0:00:26.5]} 19...
c4 {[%clk 0:00:20.4]} 20. Bxc7 {[%clk 0:00:20.1]} 20... Qxc7 {[%clk 0:00:21.3]}
21. Rb1 {[%clk 0:00:17.5]} 21... Qa5 {[%clk 0:00:19.4]} 22. Qxa7 {[%clk
0:00:14.6]} 22... Qxa2 {[%clk 0:00:18.8]} 23. Rb8 {[%clk 0:00:10.6]} 23... Rxb8
{[%clk 0:00:18.1]} 24. Qxb8+ {[%clk 0:00:11.5]} 24... Kh7 {[%clk 0:00:18.8]} 25.
Bc8 {[%clk 0:00:11.2]} 25... Qxc2 {[%clk 0:00:18]} 26. Bxe6 {[%clk 0:00:11]}
26... fxe6 {[%clk 0:00:18.9]} 27. Qe5 {[%clk 0:00:11.2]} 27... Qf5 {[%clk
0:00:14.3]} 28. Re1 {[%clk 0:00:10]} 28... Qd3 {[%clk 0:00:11.1]} 29. h3 {[%clk
0:00:07.5]} 29... Nd7 {[%clk 0:00:10.4]} 30. Qxe6 {[%clk 0:00:07.4]} 30... Qxc3
{[%clk 0:00:10.8]} 31. Qf5+ {[%clk 0:00:05.9]} 31... g6 {[%clk 0:00:05.4]} 32.
Re7+ {[%clk 0:00:04.2]} 32... Kg8 {[%clk 0:00:05.7]} 33. Qxg6+ {[%clk
0:00:02.6]} 1-0

[Event "*** Titled Tuesday Blitz"]
[Site "Chess.com"]
[Date "2020.12.29"]
[Round "9"]
[White "paulrusan"]
[Black "ChessQueen"]
[Result "1-0"]
[WhiteElo "2285"]
[BlackElo "2706"]
[TimeControl "180+1"]
[EndTime "11:44:36 PST"]
[Termination "paulrusan won on time"]

1. e4 {[%clk 0:03:00.9]} 1... c6 {[%clk 0:02:59.5]} 2. d4 {[%clk 0:03:00.4]}
2... d5 {[%clk 0:02:59.6]} 3. f3 {[%clk 0:03:01]} 3... g6 {[%clk 0:02:57.5]} 4.
Nc3 {[%clk 0:03:00.4]} 4... Bg7 {[%clk 0:02:57.9]} 5. Be3 {[%clk 0:03:00.7]}
5... Nf6 {[%clk 0:02:55.4]} 6. e5 {[%clk 0:02:58.6]} 6... Nfd7 {[%clk
0:02:55.3]} 7. f4 {[%clk 0:02:59.1]} 7... b5 {[%clk 0:02:50.5]} 8. Qd2 {[%clk
0:02:48.2]} 8... Nb6 {[%clk 0:02:49.6]} 9. b3 {[%clk 0:02:44.6]} 9... a5 {[%clk
0:02:47.3]} 10. a4 {[%clk 0:02:44.4]} 10... b4 {[%clk 0:02:44.6]} 11. Nd1 {[%clk
0:02:44]} 11... O-O {[%clk 0:02:36.9]} 12. Nf3 {[%clk 0:02:41.5]} 12... f6
{[%clk 0:02:33]} 13. Bd3 {[%clk 0:02:30.9]} 13... Bg4 {[%clk 0:02:32.5]} 14. O-O
{[%clk 0:02:28.8]} 14... N8d7 {[%clk 0:02:24.2]} 15. h3 {[%clk 0:02:28.8]} 15...
Bxf3 {[%clk 0:02:21.8]} 16. Rxf3 {[%clk 0:02:28.9]} 16... Rc8 {[%clk 0:02:21.4]}
17. e6 {[%clk 0:02:21.5]} 17... Nb8 {[%clk 0:02:21.1]} 18. f5 {[%clk 0:02:21.9]}
18... g5 {[%clk 0:02:08.7]} 19. Nf2 {[%clk 0:02:12.5]} 19... c5 {[%clk
0:02:03.5]} 20. dxc5 {[%clk 0:02:07.4]} 20... d4 {[%clk 0:02:03.9]} 21. Bxg5
{[%clk 0:02:03.3]} 21... fxg5 {[%clk 0:01:53.2]} 22. cxb6 {[%clk 0:02:03.3]}
22... h6 {[%clk 0:01:47.2]} 23. b7 {[%clk 0:01:50.8]} 23... Rc7 {[%clk
0:01:40.1]} 24. h4 {[%clk 0:01:50.7]} 24... Nc6 {[%clk 0:01:27.1]} 25. hxg5
{[%clk 0:01:49.4]} 25... h5 {[%clk 0:01:22.3]} 26. f6 {[%clk 0:01:06.9]} 26...
exf6 {[%clk 0:01:19.8]} 27. e7 {[%clk 0:00:56.8]} 27... Rxe7 {[%clk 0:00:54.7]}
28. Bc4+ {[%clk 0:00:56.9]} 28... Kh7 {[%clk 0:00:38.1]} 29. Qd3+ {[%clk
0:00:41.6]} 29... f5 {[%clk 0:00:34.9]} 30. Rxf5 {[%clk 0:00:40.5]} 30... Rxf5
{[%clk 0:00:32.6]} 31. Qxf5+ {[%clk 0:00:39.9]} 31... Kh8 {[%clk 0:00:33.1]} 32.
Qg6 {[%clk 0:00:28.9]} 32... Be5 {[%clk 0:00:32.7]} 33. Qxc6 {[%clk 0:00:25.5]}
33... d3 {[%clk 0:00:32]} 34. Rd1 {[%clk 0:00:21.6]} 34... d2 {[%clk 0:00:25.4]}
35. Nd3 {[%clk 0:00:14.5]} 35... Bd4+ {[%clk 0:00:10]} 36. Kh1 {[%clk
0:00:14.7]} 1-0

[Event "*** Titled Tuesday Blitz"]
[Site "Chess.com"]
[Date "2020.12.29"]
[Round "9"]
[White "Iskusnyh"]
[Black "ShahMatKanal"]
[Result "1-0"]
[WhiteElo "2571"]
[BlackElo "2447"]
[TimeControl "180+1"]
[EndTime "11:44:38 PST"]
[Termination "Iskusnyh won by resignation"]

1. d4 {[%clk 0:02:59.5]} 1... d5 {[%clk 0:02:58.5]} 2. c4 {[%clk 0:02:59.3]}
2... c6 {[%clk 0:02:55.7]} 3. Nf3 {[%clk 0:02:58.3]} 3... Nf6 {[%clk 0:02:55.9]}
4. e3 {[%clk 0:02:58.6]} 4... a6 {[%clk 0:02:55.8]} 5. Bd3 {[%clk 0:02:55.9]}
5... b5 {[%clk 0:02:53.7]} 6. c5 {[%clk 0:02:47.4]} 6... Bg4 {[%clk 0:02:51.6]}
7. Nbd2 {[%clk 0:02:45.2]} 7... Nbd7 {[%clk 0:02:47.2]} 8. Qc2 {[%clk
0:02:44.1]} 8... Qc7 {[%clk 0:02:42.6]} 9. a4 {[%clk 0:02:37]} 9... Rb8 {[%clk
0:02:32.7]} 10. axb5 {[%clk 0:02:36]} 10... axb5 {[%clk 0:02:33.6]} 11. b4
{[%clk 0:02:33.3]} 11... g6 {[%clk 0:02:11.9]} 12. Bb2 {[%clk 0:02:28.8]} 12...
Bxf3 {[%clk 0:02:11.5]} 13. gxf3 {[%clk 0:02:19.9]} 13... Bg7 {[%clk 0:02:08.2]}
14. f4 {[%clk 0:02:19.5]} 14... O-O {[%clk 0:02:05.8]} 15. O-O {[%clk
0:02:13.3]} 15... Ra8 {[%clk 0:02:02.5]} 16. Bc3 {[%clk 0:02:05.1]} 16... e6
{[%clk 0:01:46.5]} 17. Ra2 {[%clk 0:02:00.3]} 17... Rfb8 {[%clk 0:01:32.4]} 18.
Rfa1 {[%clk 0:01:59.1]} 18... Qb7 {[%clk 0:01:30.9]} 19. Nb3 {[%clk 0:01:56.3]}
19... h6 {[%clk 0:00:59.3]} 20. Qb1 {[%clk 0:01:40.1]} 20... g5 {[%clk
0:00:54.9]} 21. fxg5 {[%clk 0:01:36.6]} 21... hxg5 {[%clk 0:00:55.8]} 22. Kh1
{[%clk 0:01:34.5]} 22... Ng4 {[%clk 0:00:54.6]} 23. Qg1 {[%clk 0:01:31]} 23...
f5 {[%clk 0:00:45.5]} 24. Na5 {[%clk 0:01:28.7]} 24... Qc7 {[%clk 0:00:40.5]}
25. h3 {[%clk 0:01:26]} 25... Ngf6 {[%clk 0:00:22.1]} 26. Qxg5 {[%clk
0:01:24.8]} 26... Ne4 {[%clk 0:00:19.1]} 27. Bxe4 {[%clk 0:01:19.5]} 27... dxe4
{[%clk 0:00:19.4]} 28. Rg1 {[%clk 0:01:08.7]} 28... Nf6 {[%clk 0:00:14.5]} 29.
Qxf6 {[%clk 0:01:07.3]} 29... Rf8 {[%clk 0:00:06.6]} 30. Qxe6+ {[%clk
0:01:03.5]} 30... Kh8 {[%clk 0:00:06.7]} 31. Qg6 {[%clk 0:00:25.8]} 31... f4
{[%clk 0:00:05.2]} 32. Qh5+ {[%clk 0:00:20.5]} 32... Kg8 {[%clk 0:00:05.1]} 33.
d5 {[%clk 0:00:20.8]} 33... Rf7 {[%clk 0:00:03.2]} 34. d6 {[%clk 0:00:20.1]}
34... Qd7 {[%clk 0:00:02.8]} 35. Raa1 {[%clk 0:00:19.4]} 35... Raf8 {[%clk
0:00:01.8]} 36. Rxg7+ {[%clk 0:00:19.1]} 36... Rxg7 {[%clk 0:00:02.7]} 37. Bxg7
{[%clk 0:00:19.3]} 37... Qxg7 {[%clk 0:00:03.4]} 38. Rg1 {[%clk 0:00:19.3]}
38... fxe3 {[%clk 0:00:03.8]} 39. Rxg7+ {[%clk 0:00:18.6]} 1-0

[Event "*** Titled Tuesday Blitz"]
[Site "Chess.com"]
[Date "2020.12.29"]
[Round "9"]
[White "peixe64"]
[Black "mat_kolosowski"]
[Result "0-1"]
[WhiteElo "2449"]
[BlackElo "2685"]
[TimeControl "180+1"]
[EndTime "11:44:38 PST"]
[Termination "mat_kolosowski won by resignation"]

1. e4 {[%clk 0:03:00.9]} 1... c5 {[%clk 0:02:58.9]} 2. Nf3 {[%clk 0:03:01]} 2...
e6 {[%clk 0:02:59.1]} 3. d4 {[%clk 0:03:01.2]} 3... cxd4 {[%clk 0:03:00]} 4.
Nxd4 {[%clk 0:03:01.8]} 4... Nc6 {[%clk 0:03:00.7]} 5. Nc3 {[%clk 0:03:01.6]}
5... Qc7 {[%clk 0:03:01]} 6. Be3 {[%clk 0:02:59.9]} 6... a6 {[%clk 0:02:56.8]}
7. Qd2 {[%clk 0:02:58.4]} 7... Nf6 {[%clk 0:02:56.1]} 8. f3 {[%clk 0:02:58.4]}
8... Ne5 {[%clk 0:02:52.5]} 9. O-O-O {[%clk 0:02:54.8]} 9... b5 {[%clk
0:02:52.3]} 10. g4 {[%clk 0:02:40.6]} 10... h6 {[%clk 0:02:51.9]} 11. h4 {[%clk
0:02:37.4]} 11... b4 {[%clk 0:02:50]} 12. Na4 {[%clk 0:02:33.8]} 12... d5 {[%clk
0:02:50.7]} 13. Bh3 {[%clk 0:02:24.6]} 13... Bd7 {[%clk 0:02:04.6]} 14. b3
{[%clk 0:02:09.5]} 14... Bxa4 {[%clk 0:02:03.5]} 15. bxa4 {[%clk 0:02:05.3]}
15... Bd6 {[%clk 0:01:55.4]} 16. Qf2 {[%clk 0:01:44.7]} 16... Qc3 {[%clk
0:01:48.2]} 17. Nb3 {[%clk 0:01:29.5]} 17... Nc4 {[%clk 0:01:43.8]} 18. Bd4
{[%clk 0:01:19.9]} 18... Bf4+ {[%clk 0:01:42.4]} 19. Rd2 {[%clk 0:01:11.4]}
19... Nxd2 {[%clk 0:00:59.9]} 20. Bxc3 {[%clk 0:01:06.7]} 20... Ndxe4+ {[%clk
0:00:59.8]} 21. Qd2 {[%clk 0:00:57]} 21... Nxd2 {[%clk 0:00:56.4]} 22. Bxd2
{[%clk 0:00:57.9]} 22... Bxd2+ {[%clk 0:00:55.2]} 23. Kxd2 {[%clk 0:00:58.1]}
23... Ke7 {[%clk 0:00:55.6]} 24. Na5 {[%clk 0:00:54.3]} 24... Rhc8 {[%clk
0:00:47.9]} 25. Rb1 {[%clk 0:00:54.1]} 25... Rab8 {[%clk 0:00:47.5]} 26. Bf1
{[%clk 0:00:53.6]} 26... Rb6 {[%clk 0:00:47.1]} 27. g5 {[%clk 0:00:49.3]} 27...
hxg5 {[%clk 0:00:47.1]} 28. hxg5 {[%clk 0:00:50.2]} 28... Nd7 {[%clk 0:00:47.9]}
29. Nb3 {[%clk 0:00:47.6]} 29... Nc5 {[%clk 0:00:47.1]} 30. a5 {[%clk
0:00:40.8]} 30... Nxb3+ {[%clk 0:00:45.9]} 31. Rxb3 {[%clk 0:00:41]} 31... Rbc6
{[%clk 0:00:46.4]} 32. Bd3 {[%clk 0:00:41.7]} 32... Rb8 {[%clk 0:00:45.5]} 33.
a3 {[%clk 0:00:40.2]} 33... Rc3 {[%clk 0:00:40.9]} 34. Rxb4 {[%clk 0:00:36.6]}
34... Rxb4 {[%clk 0:00:39.8]} 35. axb4 {[%clk 0:00:36.9]} 35... Rc6 {[%clk
0:00:40.7]} 36. f4 {[%clk 0:00:33.8]} 36... Kd6 {[%clk 0:00:40.4]} 37. Ke3
{[%clk 0:00:30]} 37... e5 {[%clk 0:00:40.6]} 38. fxe5+ {[%clk 0:00:29.1]} 38...
Kxe5 {[%clk 0:00:41.5]} 39. Bh7 {[%clk 0:00:20.6]} 39... g6 {[%clk 0:00:38.8]}
40. Bg8 {[%clk 0:00:20.2]} 40... Ke6 {[%clk 0:00:37.7]} 41. Kd4 {[%clk
0:00:20.8]} 41... Rc4+ {[%clk 0:00:37.3]} 42. Kd3 {[%clk 0:00:20.8]} 42... Rc8
{[%clk 0:00:38.2]} 43. Bh7 {[%clk 0:00:18.6]} 43... Rh8 {[%clk 0:00:35.9]} 44.
Kd4 {[%clk 0:00:19.1]} 44... Rxh7 {[%clk 0:00:36.4]} 45. Kc5 {[%clk 0:00:19.8]}
45... Rh2 {[%clk 0:00:35.9]} 46. Kb6 {[%clk 0:00:20.2]} 46... Rxc2 {[%clk
0:00:34.6]} 47. Kxa6 {[%clk 0:00:20.2]} 47... d4 {[%clk 0:00:34.2]} 48. b5
{[%clk 0:00:20.9]} 48... d3 {[%clk 0:00:34.7]} 49. b6 {[%clk 0:00:21.6]} 49...
d2 {[%clk 0:00:35.2]} 50. b7 {[%clk 0:00:22.2]} 50... Rb2 {[%clk 0:00:34.5]} 0-1

[Event "*** Titled Tuesday Blitz"]
[Site "Chess.com"]
[Date "2020.12.29"]
[Round "9"]
[White "VladimirBugayev"]
[Black "juli2512"]
[Result "0-1"]
[WhiteElo "2254"]
[BlackElo "2123"]
[TimeControl "180+1"]
[EndTime "11:44:38 PST"]
[Termination "juli2512 won by resignation"]

1. e4 {[%clk 0:03:00.9]} 1... c5 {[%clk 0:02:59.3]} 2. a3 {[%clk 0:02:59.9]}
2... d5 {[%clk 0:02:58.5]} 3. exd5 {[%clk 0:02:58.9]} 3... Qxd5 {[%clk
0:02:58.9]} 4. Nc3 {[%clk 0:02:59.4]} 4... Qd8 {[%clk 0:02:55.9]} 5. Bc4 {[%clk
0:02:59.7]} 5... e6 {[%clk 0:02:55.6]} 6. d3 {[%clk 0:02:56.6]} 6... Nf6 {[%clk
0:02:55.9]} 7. Nge2 {[%clk 0:02:55.7]} 7... Be7 {[%clk 0:02:55.7]} 8. f3 {[%clk
0:02:42.4]} 8... Nc6 {[%clk 0:02:52.4]} 9. Bf4 {[%clk 0:02:27.9]} 9... O-O
{[%clk 0:02:48]} 10. Qd2 {[%clk 0:02:25.9]} 10... a6 {[%clk 0:02:45.3]} 11. a4
{[%clk 0:02:25.9]} 11... b6 {[%clk 0:02:44.9]} 12. O-O {[%clk 0:02:20.4]} 12...
Nd5 {[%clk 0:02:29]} 13. Bg3 {[%clk 0:02:17.5]} 13... Bf6 {[%clk 0:02:20.7]} 14.
Rab1 {[%clk 0:02:11.5]} 14... Bb7 {[%clk 0:01:57.7]} 15. Ne4 {[%clk 0:02:10.8]}
15... Be7 {[%clk 0:01:56.8]} 16. N2c3 {[%clk 0:02:10.4]} 16... Nd4 {[%clk
0:01:50.8]} 17. Bf2 {[%clk 0:01:51.3]} 17... Nb4 {[%clk 0:01:43]} 18. Rbc1
{[%clk 0:01:45.5]} 18... Bc6 {[%clk 0:01:33.2]} 19. Ne2 {[%clk 0:01:28.6]} 19...
b5 {[%clk 0:01:19.7]} 20. Nxd4 {[%clk 0:01:22.8]} 20... cxd4 {[%clk 0:01:16.2]}
21. axb5 {[%clk 0:01:22.5]} 21... axb5 {[%clk 0:01:15.7]} 22. Bb3 {[%clk
0:01:22.3]} 22... Bb7 {[%clk 0:00:48.7]} 23. Rfe1 {[%clk 0:01:16]} 23... Nc6
{[%clk 0:00:40.8]} 24. f4 {[%clk 0:01:09.9]} 24... Qd7 {[%clk 0:00:29.8]} 25.
Re2 {[%clk 0:01:09.3]} 25... Rad8 {[%clk 0:00:23.6]} 26. Rf1 {[%clk 0:01:00.9]}
26... Bb4 {[%clk 0:00:20.8]} 27. Qc1 {[%clk 0:01:00]} 27... Be7 {[%clk
0:00:19.9]} 28. Be1 {[%clk 0:00:50.7]} 28... Nb4 {[%clk 0:00:19.2]} 29. Bxb4
{[%clk 0:00:49.4]} 29... Bxb4 {[%clk 0:00:18.6]} 30. Ng5 {[%clk 0:00:44.7]}
30... h6 {[%clk 0:00:17.7]} 31. Nf3 {[%clk 0:00:44.7]} 31... Be7 {[%clk
0:00:17.2]} 32. Ne5 {[%clk 0:00:44.6]} 32... Qc7 {[%clk 0:00:16.5]} 33. f5
{[%clk 0:00:40.4]} 33... Bd5 {[%clk 0:00:14.8]} 34. Bxd5 {[%clk 0:00:38.1]}
34... Rxd5 {[%clk 0:00:13.6]} 35. fxe6 {[%clk 0:00:37.6]} 35... Rxe5 {[%clk
0:00:13.4]} 36. exf7+ {[%clk 0:00:36.7]} 36... Rxf7 {[%clk 0:00:12.1]} 37. Rxe5
{[%clk 0:00:35.8]} 37... Qxe5 {[%clk 0:00:11.3]} 38. Rxf7 {[%clk 0:00:34.9]}
38... Kxf7 {[%clk 0:00:11.1]} 39. Qf1+ {[%clk 0:00:34.9]} 39... Qf6 {[%clk
0:00:10.5]} 40. Qe2 {[%clk 0:00:34.4]} 40... Bd6 {[%clk 0:00:10.3]} 41. Qh5+
{[%clk 0:00:34.1]} 41... Qg6 {[%clk 0:00:09.6]} 42. Qxb5 {[%clk 0:00:34]} 42...
Qe6 {[%clk 0:00:09.5]} 43. Qb7+ {[%clk 0:00:30.7]} 43... Kf6 {[%clk 0:00:09.1]}
44. Qf3+ {[%clk 0:00:29.9]} 44... Qf5 {[%clk 0:00:09.1]} 45. Qd5 {[%clk
0:00:26.6]} 45... Qxd5 {[%clk 0:00:08.5]} 0-1

[Event "*** Titled Tuesday Blitz"]
[Site "Chess.com"]
[Date "2020.12.29"]
[Round "9"]
[White "FairChess_on_YouTube"]
[Black "VerdeNotte"]
[Result "1-0"]
[WhiteElo "3011"]
[BlackElo "2888"]
[TimeControl "180+1"]
[EndTime "11:44:39 PST"]
[Termination "FairChess_on_YouTube won on time"]

1. Nf3 {[%clk 0:02:59.9]} 1... c5 {[%clk 0:02:57.7]} 2. b3 {[%clk 0:02:58.5]}
2... d6 {[%clk 0:02:57.2]} 3. Bb2 {[%clk 0:02:57.9]} 3... e5 {[%clk 0:02:57.3]}
4. g3 {[%clk 0:02:57.4]} 4... g6 {[%clk 0:02:50.5]} 5. c4 {[%clk 0:02:54.9]}
5... Bg7 {[%clk 0:02:50.7]} 6. Bg2 {[%clk 0:02:55.1]} 6... Nc6 {[%clk
0:02:50.7]} 7. O-O {[%clk 0:02:54]} 7... Nge7 {[%clk 0:02:48.1]} 8. d3 {[%clk
0:02:53.9]} 8... O-O {[%clk 0:02:46.9]} 9. Nc3 {[%clk 0:02:54.4]} 9... h6 {[%clk
0:02:46.7]} 10. a3 {[%clk 0:02:52.4]} 10... a5 {[%clk 0:02:44.8]} 11. Nd2 {[%clk
0:02:50.4]} 11... Rb8 {[%clk 0:02:39.2]} 12. Nb5 {[%clk 0:02:47.2]} 12... Be6
{[%clk 0:02:33.8]} 13. Ne4 {[%clk 0:02:46.3]} 13... Nc8 {[%clk 0:02:31.3]} 14.
Nec3 {[%clk 0:02:44.3]} 14... Qd7 {[%clk 0:02:25.9]} 15. Nd5 {[%clk 0:02:36.2]}
15... Bh3 {[%clk 0:02:24.8]} 16. e4 {[%clk 0:02:17.8]} 16... Bxg2 {[%clk
0:02:18.4]} 17. Kxg2 {[%clk 0:02:17.8]} 17... N8e7 {[%clk 0:02:14]} 18. f4
{[%clk 0:02:15.8]} 18... Nxd5 {[%clk 0:02:13.2]} 19. exd5 {[%clk 0:02:14.7]}
19... Nd4 {[%clk 0:02:11.9]} 20. Bxd4 {[%clk 0:02:11.9]} 20... exd4 {[%clk
0:02:08.4]} 21. f5 {[%clk 0:02:10.7]} 21... gxf5 {[%clk 0:02:02.9]} 22. Qh5
{[%clk 0:02:06.2]} 22... Rbe8 {[%clk 0:02:01.2]} 23. Qxf5 {[%clk 0:01:58.9]}
23... Re2+ {[%clk 0:01:59]} 24. Kh3 {[%clk 0:01:54.6]} 24... Qe7 {[%clk
0:01:45]} 25. Rf4 {[%clk 0:01:48.9]} 25... Qg5 {[%clk 0:01:08.7]} 26. Nxd6
{[%clk 0:01:35.5]} 26... Qxf5+ {[%clk 0:00:47.3]} 27. Rxf5 {[%clk 0:01:28.4]}
27... b6 {[%clk 0:00:42.8]} 28. Raf1 {[%clk 0:01:25.7]} 28... f6 {[%clk
0:00:34.5]} 29. R5f2 {[%clk 0:01:19.2]} 29... Re3 {[%clk 0:00:32.7]} 30. Rf3
{[%clk 0:01:19.4]} 30... Re2 {[%clk 0:00:30.3]} 31. a4 {[%clk 0:01:13.5]} 31...
Rb2 {[%clk 0:00:19.2]} 32. Re1 {[%clk 0:01:12.7]} 32... Rxb3 {[%clk 0:00:16.4]}
33. Nf5 {[%clk 0:01:12.5]} 33... h5 {[%clk 0:00:09.8]} 34. d6 {[%clk 0:01:09.4]}
34... Rd8 {[%clk 0:00:09.8]} 35. Re6 {[%clk 0:01:06.7]} 35... Rb2 {[%clk
0:00:08.3]} 36. Rf4 {[%clk 0:00:51]} 36... Rd2 {[%clk 0:00:07.5]} 37. Rfe4
{[%clk 0:00:51.1]} 37... Bf8 {[%clk 0:00:06.2]} 38. Rxf6 {[%clk 0:00:46.7]}
38... Rxd3 {[%clk 0:00:05.1]} 39. Kh4 {[%clk 0:00:47.1]} 39... Rd2 {[%clk
0:00:05]} 40. Kxh5 {[%clk 0:00:46.9]} 40... Rxh2+ {[%clk 0:00:04.8]} 41. Kg6
{[%clk 0:00:47]} 41... Rh7 {[%clk 0:00:04]} 42. Ne7+ {[%clk 0:00:29.8]} 42...
Bxe7 {[%clk 0:00:03.2]} 43. Rxe7 {[%clk 0:00:30.7]} 43... Rxe7 {[%clk
0:00:02.4]} 44. dxe7 {[%clk 0:00:31.6]} 44... Re8 {[%clk 0:00:03]} 45. Rd6
{[%clk 0:00:32.1]} 1-0